Cogmind - Beta 12 @@@ ROGUE MODE // 2024.01.06 @ 11:46:14 Player: monistgf Result: Destroyed by Y-54 Guardian with Flak Gun Performance ------------- Evolutions (4) 2000 Regions Visited (10) 2000 Robots Destroyed (123) 615 Value Destroyed (4358) 4358 Prototype IDs (8) 160 Alien Tech Used (0) 0 Bonus (207) 207 TOTAL SCORE: 9340 Bonus ------- Follower Combat Kills 207 Cogmind --------- Core Integrity 0/850 Matter 300/300 Energy 216/265 System Corruption 0% Temperature Cool (12) Movement Walking (120) Location -6/Extension Parts ------- > --- POWER (1) -------- Improved Ion Engine > --- PROPULSION (4) --- Carbon-fiber Leg Carbon-fiber Leg > --- UTILITY (7) ------ Medium Storage Unit Machine Analyzer Improved Melee Analysis Suite > --- WEAPON (3) ------- Heavy Laser > --- INVENTORY (10) --- Light Nuclear Core Carbon-fiber Leg Gravmag Array High-capacity Storage Unit Matter Compressor (250) Faulty Experimental Sensor Array Hardened Light Armor Plating Authchip [Propulsion] Authchip [Device] Peak State ------------ > --- POWER ------------ Improved Deuterium Engine > --- PROPULSION ------- Cooled Aerolev Unit Cooled Aerolev Unit Cooled Aerolev Unit Cooled Aerolev Unit > --- UTILITY ---------- High-capacity Storage Unit Machine Analyzer Improved Signal Interpreter Seismic Detector Advanced Targeting Computer Improved Propulsion Shielding Improved Focal Shield > --- WEAPON ----------- Great Maul Great Maul Power Maul > --- INVENTORY -------- Light Angular Momentum Engine Gravmag System Improved Gravmag System High-capacity Storage Unit High-capacity Matter Pod Experimental Sensor Array Kinecellerator Weapon Cycler Transmission Jammer Improved System Restoration Module Improved System Restoration Module Long-range Tractor Beam Recalibrator Heavy Plasma Cannon Gauss Rifle Gauss Rifle Flak Gun Flak Gun Flak Gun Advanced Assault Cannon [Rating: 66] Favorites ----------- Power Light Nuclear Core Engine Improved Deuterium Engine Power Core Light Nuclear Core Propulsion Armored Huge Wheel Treads Light Treads Leg Titanium Leg Wheel Armored Huge Wheel Hover Unit Cooled Aerolev Unit Utility High-capacity Storage Unit Device Seismic Detector Storage High-capacity Storage Unit Processor Improved Signal Interpreter Protection Improved Light Armor Plating Weapon Assault Rifle Energy Gun Gatling Laser Energy Cannon Ion Cannon Ballistic Gun Assault Rifle Ballistic Cannon Advanced Assault Cannon Launcher Rocket Launcher Impact Weapon Power Maul Slashing Weapon Phasing Sabre Build | -11 -10 -10 -10 -9 -8 -7 -7 -7 -6 -6 ------- Run | Jun Mat Min Exi Min Mat Fac Was Fac Fac Ext Slots Evolved 8 | . . . . . 4 2 . . 2 . Power . | . . . . . . . . . . . Propulsion 2 | . . . . . 1 1 . . . . Utility 5 | . . . . . 2 1 . . 2 . Weapon 1 | . . . . . 1 . . . . . Parts Attached 194 | . 11 5 . 11 26 59 3 25 28 26 Power 16 | . . 1 . . 2 3 1 2 4 3 Engine 9 | . . 1 . . 2 1 . 1 2 2 Core 7 | . . . . . . 2 1 1 2 1 Reactor . | . . . . . . . . . . . Propulsion 54 | . 2 2 . 3 6 10 . 6 11 14 Treads 6 | . . . . 2 . 1 . 2 . 1 Leg 23 | . . . . . 2 5 . 4 4 8 Wheel 15 | . 2 2 . 1 4 4 . . 2 . Hover 10 | . . . . . . . . . 5 5 Flight . | . . . . . . . . . . . Utility 59 | . 3 1 . 1 4 25 2 8 11 4 Device 43 | . 1 1 . 1 3 23 1 6 6 1 Storage 4 | . 1 . . . 1 . . 1 1 . Processor 5 | . 1 . . . . 1 . . 3 . Hackware . | . . . . . . . . . . . Protection 7 | . . . . . . 1 1 1 1 3 Artifact . | . . . . . . . . . . . Weapon 65 | . 6 1 . 7 14 21 . 9 2 5 Energy Gun 2 | . . . . . . 1 . . . 1 Energy Cannon 5 | . . . . . . 3 . 2 . . Ballistic Gun 32 | . 4 1 . 6 8 8 . 3 . 2 Ballistic Cannon 3 | . . . . . . 2 . 1 . . Launcher 11 | . 2 . . 1 5 2 . 1 . . Special Weapon . | . . . . . . . . . . . Impact Weapon 11 | . . . . . 1 5 . 2 2 1 Slashing Weapon 1 | . . . . . . . . . . 1 Piercing Weapon . | . . . . . . . . . . . Special Melee Weapon . | . . . . . . . . . . . Unidentified Prototypes 4 | . . . . . 1 1 1 . 1 . Parts Lost 76 | . . . . 7 9 10 2 14 8 26 Power 8 | . . . . . 2 1 . 1 1 3 Propulsion 29 | . . . . 3 5 3 . 4 3 11 Utility 18 | . . . . 1 . 2 . 5 4 6 Weapon 21 | . . . . 3 2 4 2 4 . 6 Highest Loss Streak 19 | . . . . 3 6 3 2 4 3 19 To Critical Strikes . | . . . . . . . . . . . Average Slot Usage (%) 88 | . 97 100 100 93 93 86 77 84 93 87 Engine 4 | . 14 14 14 14 8 1 . 4 3 . Core 3 | . . . . . . 5 6 2 2 5 Treads 2 | . . . . 15 6 . . 4 . . Leg 6 | . 5 . . . 4 4 . 11 16 2 Wheel 10 | . 22 28 28 10 10 12 15 5 . . Hover 2 | . . . . . . . . . 8 18 Device 18 | . 9 14 14 10 26 23 21 17 13 4 Storage 7 | . 14 14 14 14 9 7 7 7 6 6 Processor 7 | . 2 . . . . 5 7 7 20 19 Protection 1 | . . . . . . . . 1 1 9 Energy Cannon 1 | . . . . . . 3 . 1 . . Ballistic Gun 13 | . 25 28 28 27 18 15 12 6 . . Ballistic Cannon 1 | . . . . . . 1 4 4 . . Impact Weapon 4 | . . . . . . 1 . 5 17 13 Naked Turns . | . . . . . . . . . . . Heaviest Build 73 | 13 31 31 31 31 61 68 64 73 66 38 Greatest Support 72 | 20 26 26 20 40 40 56 56 72 72 60 Greatest Overweight (x) 6 | . 1 1 1 3 6 2 1 2 2 1 Average Overweight (x) . | . . 1 1 1 4 1 . 1 . . Largest Inventory Capacity 20 | . 15 15 15 15 20 20 20 20 20 10 Average Capacity 18 | . 13 15 15 15 17 20 20 20 18 10 Most Carried 20 | . 12 15 15 15 20 20 20 20 20 10 Average Carried 16 | . 9 14 15 14 11 18 19 18 16 9 Final Capacity 20 | 8 15 15 15 15 20 20 20 20 10 10 Final Carried 20 | 6 12 15 15 15 19 20 19 18 10 10 Class Distribution -------------------- 48% | Mutant 31% | Gunner 7% | Scavenger-Skirmisher 4% | Scavenger-Mutant 3% | Scavenger-Gunner Dominant Class ---------------- Mutant | -10/Materials Mutant | -10/Mines Mutant | -10/Exiles Mutant | -9/Mines Scavenger-Skirmisher | -8/Materials Gunner | -7/Factory Gunner | -7/Waste Mutant | -7/Factory Mutant | -6/Factory Mutant | -6/Extension Resources | -11 -10 -10 -10 -9 -8 -7 -7 -7 -6 -6 ----------- Run | Jun Mat Min Exi Min Mat Fac Was Fac Fac Ext Matter Collected 4852 | 200 308 218 . 410 268 1741 . 613 570 524 Remotely . | . . . . . . . . . . . Salvage Created 4302 | . 122 99 . 180 287 1482 . 466 938 728 Parts 173 | . 21 9 . . 14 76 . 14 25 14 Haulers Intercepted 2 | . 1 . . . . . . . . 1 Recyclers Shooed 6 | . . . . . 2 2 . . 1 1 Parts Field Recycled . | . . . . . . . . . . . Retrieved Matter . | . . . . . . . . . . . Parts Self-Destructed . | . . . . . . . . . . . Prevented . | . . . . . . . . . . . Kills | -11 -10 -10 -10 -9 -8 -7 -7 -7 -6 -6 ------- Run | Jun Mat Min Exi Min Mat Fac Was Fac Fac Ext Combat Hostiles Destroyed 110 | . 8 1 . 17 13 35 . 11 15 10 Melee 21 | . . . . . . 1 . 4 11 5 Guns 44 | . 3 1 . 17 3 19 . . . 1 Cannons 7 | . . . . . . 4 . 3 . . AOE 24 | . 5 . . . 10 9 . . . . Classes Destroyed 17 | . 4 2 . 1 2 6 . 1 . 1 Worker 9 | . . 2 . . . 3 . 1 3 . Builder 4 | . . . . . . 1 . 2 1 . Tunneler 1 | . . . . . 1 . . . . . Hauler 2 | . 1 . . . . . . . . 1 Recycler 4 | . . . . . 1 . . . 2 1 Mechanic 1 | . . . . . . 1 . . . . Operator 3 | . 1 . . . . . . . . 2 Watcher 6 | . 1 . . . . 2 . . 2 1 Swarmer 28 | . 8 . . . 3 5 . 2 7 3 Grunt 33 | . . 1 . . 10 15 . 2 3 2 Brawler 2 | . . . . . . 2 . . . . Duelist 2 | . . . . . . 1 . 1 . . Sentry 9 | . . . . . . 1 . 3 2 3 Hunter 1 | . . . . . . . . 1 . . Programmer 16 | . . . . . . 11 . 2 3 . Behemoth 1 | . . . . . . . . . . 1 Assembled 17 | . . . . 17 . . . . . . Savage 1 | . . . . . . . . . . 1 Best Kill Streak 12 | . 3 2 . 12 6 8 . 3 4 3 Combat Bots Only 12 | . 3 1 . 12 5 6 . 3 3 4 Max Kills in Single Turn 4 | . 2 1 . 1 4 2 . 1 1 1 Gunslinging . | . . . . . . . . . . . Exploded 3 | . 2 . . . 3 2 . . . . Melee 1 | . . . . . . 1 . 1 1 1 Uniques/NPCs Destroyed . | . . . . . . . . . . . Combat | -11 -10 -10 -10 -9 -8 -7 -7 -7 -6 -6 -------- Run | Jun Mat Min Exi Min Mat Fac Was Fac Fac Ext Damage Taken 10810 | . 202 34 . 832 650 2137 168 2313 1344 3130 Core 1789 | . 44 11 . 105 112 265 108 294 202 648 Absorbed by Shields 22 | . . . . . . . . . . 22 Redirected to Shielding 192 | . . . . . . 71 . 20 101 . Core Remaining (%) 54 | 100 . . . 36 79 . . 4 . . Volleys Fired 219 | . 20 5 . 45 28 85 4 20 . 12 Largest 3 | . 2 2 . 2 3 3 3 3 . 2 Hottest 156 | . 60 43 . 44 70 120 104 156 . 69 Shots Fired 493 | . 31 10 . 85 56 229 12 50 . 20 Gun 382 | . 24 10 . 82 37 180 8 21 . 20 Cannon 69 | . . . . . . 36 4 29 . . Launcher 42 | . 7 . . 3 19 13 . . . . Special . | . . . . . . . . . . . Kinetic 381 | . 22 10 . 82 37 163 12 39 . 16 Thermal 70 | . 2 . . . . 53 . 11 . 4 Explosive 42 | . 7 . . 3 19 13 . . . . Electromagnetic . | . . . . . . . . . . . Robot Hit Streak 22 | . 9 14 . 7 7 22 8 7 . 8 Robot Miss Streak 7 | . 3 4 . 5 5 7 2 5 . 1 Penetration Max . | . . . . . . . . . . . Secondary Targets 6 | . . . . 4 . 1 . . . 1 Max Gunslinging Chain 1 | . . . . 1 . 1 . . . 1 Shots Hit Robots 433 | . 14 6 . 53 27 166 11 53 47 56 Core Hits 238 | . 15 3 . 34 33 101 4 22 9 17 Critical Kills 12 | . . . . . . 1 . 3 6 2 Critical Parts Destroyed 32 | . . . . . . 3 . 5 15 9 Critical Strikes 47 | . . . . . . 5 . 9 22 11 Meltdown 1 | . . . . . . . . 1 . . Destroy 1 | . . . . . . 1 . . . . Blast 2 | . . . . . . 1 . 1 . . Smash 43 | . . . . . . 3 . 7 22 11 Melee Attacks 182 | . . . . . 1 14 . 45 74 48 Impact 175 | . . . . . 1 14 . 45 74 41 Slashing 7 | . . . . . . . . . . 7 Piercing . | . . . . . . . . . . . Sneak Attacks 21 | . . . . . . 1 . 3 9 8 Combat Hostiles 1 | . . . . . . . . . 1 . Follow-up Attacks 25 | . . . . . . . . . 10 15 Damage Inflicted 14134 | . 423 83 . 808 1506 3989 281 2082 2576 2386 Guns 4053 | . 126 83 . 808 230 2054 164 254 . 334 Cannons 1299 | . . . . . . 678 117 504 . . Explosions 2543 | . 297 . . . 1274 896 . 76 . . Melee 6204 | . . . . . . 328 . 1248 2576 2052 Ramming 35 | . . . . . 2 33 . . . . Kinetic 4080 | . 115 83 . 808 230 1755 281 547 . 261 Thermal 1573 | . 11 . . . 301 977 . 211 . 73 Explosive 2232 | . 297 . . . 973 886 . 76 . . Electromagnetic 10 | . . . . . . 10 . . . . Impact 5965 | . . . . . . 328 . 1248 2576 1813 Slashing 239 | . . . . . . . . . . 239 Piercing . | . . . . . . . . . . . Highest Corruption 20 | . . . . 12 . 8 19 20 4 . Average Corruption 8 | . . . . 10 . 4 13 19 2 . Corruption Purged 14 | . . . . . . 5 . 2 7 . Corruption Blocked . | . . . . . . . . . . . Effects 202 | . . . . 19 . 94 6 78 5 . Message Errors 64 | . . . . 5 . 35 3 19 2 . Matter Fused 50 | . . . . 1 . 25 1 21 2 . Heat Flow Errors 17 | . . . . 1 . 5 . 10 1 . Energy Discharges 19 | . . . . 4 . 5 1 9 . . Parts Fused 6 | . . . . 1 . 3 . 2 . . Data Loss (minor) 21 | . . . . 4 . 8 . 9 . . Data Loss (major) 8 | . . . . . . 6 . 2 . . Misfires 4 | . . . . . . 2 . 2 . . Alerts 7 | . . . . 1 . 4 . 2 . . Misdirections 1 | . . . . . . . 1 . . . Weapon Failures 5 | . . . . 2 . 1 . 2 . . Overload Shots . | . . . . . . . . . . . Overflow Damage 2599 | . 18 . . . 67 245 . 580 1034 655 Projectiles 78 | . . . . . . 71 . 7 . . Explosions 85 | . 18 . . . 67 . . . . . Melee 2436 | . . . . . . 174 . 573 1034 655 Knockbacks 21 | . . . . . . 6 . 6 8 1 Impact 15 | . . . . . . 2 . 4 8 1 Kinetic 5 | . . . . . . 3 . 2 . . Secondary 1 | . . . . . . 1 . . . . Self-Inflicted Damage 266 | . . . . 32 54 49 . 131 . . Shots 7 | . . . . 1 2 2 . 2 . . Rammed 1 | . . . . . . 1 . . . . Targets Rammed 9 | . . . . . 1 8 . . . . Kicked 8 | . . . . . 1 7 . . . . Crushed . | . . . . . . . . . . . Highest Temperature 371 | . . 1 . 194 59 371 . 295 162 30 Average Temperature 98 | . . 1 . 45 17 125 . 101 92 10 Received Heat Transfer 2567 | . . 18 . 140 360 708 . 390 99 852 Effects 5 | . . . . . . 5 . . . . Energy Bleed 3 | . . . . . . 3 . . . . Interference 2 | . . . . . . 2 . . . . Siege Activations . | . . . . . . . . . . . Robots Corrupted . | . . . . . . . . . . . Combat Hostiles . | . . . . . . . . . . . Parts Fried 40 | . . . . . . 4 . 5 20 11 Impact Corruptions 85 | . . . . . . 8 . 24 36 17 Robots Melted 1 | . . . . . . . . 1 . . Combat Hostiles 1 | . . . . . . . . 1 . . Parts Melted 2 | . . . . . . 1 . 1 . . Heat Transferred 2614 | . 25 . . . 250 1791 . 400 . 148 Parts Sabotaged . | . . . . . . . . . . . Parts Stolen . | . . . . . . . . . . . Parts Stripped . | . . . . . . . . . . . Power Chain Reactions . | . . . . . . . . . . . Missiles Intercepted . | . . . . . . . . . . . Alert | -11 -10 -10 -10 -9 -8 -7 -7 -7 -6 -6 ------- Run | Jun Mat Min Exi Min Mat Fac Was Fac Fac Ext Peak Influence 376 | . 174 75 . 12 292 357 111 251 202 376 Initial 106 | . . 30 . . . 14 106 70 44 73 Average 126 | . 58 43 . 2 54 177 105 63 102 224 Maximum Alert Level 1 | . . . . . 1 1 . 1 1 1 Low Security (%) 68 | . 100 100 . 100 89 44 100 94 97 33 Level 1 31 | . . . . . 10 55 . 5 2 66 Level 2 . | . . . . . . . . . . . Level 3 . | . . . . . . . . . . . Level 4 . | . . . . . . . . . . . Level 5 . | . . . . . . . . . . . High Security . | . . . . . . . . . . . Max Security . | . . . . . . . . . . . Squads Dispatched 25 | . 1 1 . . 1 13 . 4 3 2 Investigation 3 | . . 1 . . 1 . . 1 . . Extermination 14 | . . . . . . 9 . 2 3 . Reinforcement 8 | . 1 . . . . 4 . 1 . 2 Assault . | . . . . . . . . . . . Garrison . | . . . . . . . . . . . Intercept . | . . . . . . . . . . . Searches Triggered . | . . . . . . . . . . . Construction Impeded 2 | . . . . . . 2 . . . . Haulers Reinforced 1 | . . . . . . 1 . . . . Active Scanning Responses . | . . . . . . . . . . . Cargo Convoy Interrupts . | . . . . . . . . . . . Stealth | -11 -10 -10 -10 -9 -8 -7 -7 -7 -6 -6 --------- Run | Jun Mat Min Exi Min Mat Fac Was Fac Fac Ext Distress Signals 3 | . . . . . 2 . . 1 . . Communications Jammed . | . . . . . . . . . . . Distress Signals . | . . . . . . . . . . . Times Spotted 186 | . 15 3 . 26 19 48 6 17 32 20 Peak Tracking Total 7 | . 4 2 . 7 6 4 6 3 5 5 Tactical Retreats 15 | . . 1 . 5 . 3 . 1 3 2 Traps | -11 -10 -10 -10 -9 -8 -7 -7 -7 -6 -6 ------- Run | Jun Mat Min Exi Min Mat Fac Was Fac Fac Ext Traps Triggered 18 | . . . . . 1 5 . 3 4 5 Indirectly . | . . . . . . . . . . . Trap Hack Attempts . | . . . . . . . . . . . Triggered . | . . . . . . . . . . . Disarmed . | . . . . . . . . . . . Reprogrammed . | . . . . . . . . . . . Reused . | . . . . . . . . . . . Traps Extracted . | . . . . . . . . . . . Installed . | . . . . . . . . . . . Triggered . | . . . . . . . . . . . Machines | -11 -10 -10 -10 -9 -8 -7 -7 -7 -6 -6 ---------- Run | Jun Mat Min Exi Min Mat Fac Was Fac Fac Ext Machines Disabled 8 | . . . . . 2 2 . 4 . . Max in Single Turn 2 | . . . . . 1 2 . 1 . . Garrison Access 1 | . . . . . . . . 1 . . Machines Repaired . | . . . . . . . . . . . Machines Sabotaged . | . . . . . . . . . . . Overloaded Fab Kills . | . . . . . . . . . . . Hacking | -11 -10 -10 -10 -9 -8 -7 -7 -7 -6 -6 --------- Run | Jun Mat Min Exi Min Mat Fac Was Fac Fac Ext Machines Accessed 31 | . 3 1 1 . 1 6 . 5 8 6 Terminals 16 | . 3 . . . 1 2 . 1 4 5 Fabricators 5 | . . . . . . 3 . 1 1 . Repair Stations 5 | . . . . . . . . 1 3 1 Recycling Units 1 | . . . . . . . . 1 . . Scanalyzers . | . . . . . . . . . . . Garrison Access 2 | . . . . . . 1 . 1 . . Total Hacks 94 | . 6 1 23 . 4 15 . 10 21 14 Successful 58 | . 3 1 23 . 3 8 . 5 9 6 Failed 36 | . 3 . . . 1 7 . 5 12 8 Catastrophic 11 | . 1 . . . 1 2 . . 4 3 Database Lockouts . | . . . . . . . . . . . Manual 29 | . 3 . . . 3 8 . 3 6 6 Terminals 43 | . 6 . . . 4 9 . 1 11 12 Fabricators 11 | . . . . . . 5 . 3 3 . Repair Stations 12 | . . . . . . . . 3 7 2 Recycling Units 2 | . . . . . . . . 2 . . Scanalyzers . | . . . . . . . . . . . Garrison Access 2 | . . . . . . 1 . 1 . . Terminal Hacks 41 | . 2 1 23 . 3 3 . . 5 4 Record 24 | . . . 23 . . . . . 1 . Prototype ID Bank 2 | . . . . . . . . . . 2 Open Door 3 | . . 1 . . . . . . 1 1 Branch Access Points 1 | . . . . . . . . . 1 . Alert Level 4 | . . . . . 1 2 . . 1 . Unreport Threat 3 | . 1 . . . 1 1 . . . . Locate Traps 3 | . 1 . . . 1 . . . 1 . Zone Layout 1 | . . . . . . . . . . 1 Fabricator Hacks 5 | . . . . . . 3 . 1 1 . Network Status 5 | . . . . . . 3 . 1 1 . Repair Station Hacks 5 | . . . . . . . . 1 3 1 Scan Component 5 | . . . . . . . . 1 3 1 Recycling Unit Hacks 1 | . . . . . . . . 1 . . Report Inventory 1 | . . . . . . . . 1 . . Scanalyzer . | . . . . . . . . . . . Garrison Access Hacks 1 | . . . . . . . . 1 . . Seal Access 1 | . . . . . . . . 1 . . Unauthorized Hacks 5 | . 1 . . . . 2 . 1 . 1 Terminals 3 | . 1 . . . . 1 . . . 1 Assimilate 1 | . 1 . . . . . . . . . Botnet 2 | . . . . . . 1 . . . 1 Fabricators 2 | . . . . . . 1 . 1 . . Report 2 | . . . . . . 1 . 1 . . Repair Stations . | . . . . . . . . . . . Recycling Units . | . . . . . . . . . . . Scanalyzers . | . . . . . . . . . . . Garrison Access . | . . . . . . . . . . . Data Cores Recovered 1 | . 1 . . . . . . . . . Used . | . . . . . . . . . . . Hacking Detections 23 | . 3 . . . 1 4 . 3 7 5 Full Trace Events . | . . . . . . . . . . . Feedback Events . | . . . . . . . . . . . Feedback Blocked . | . . . . . . . . . . . Robot Schematics Acquired . | . . . . . . . . . . . Robots Built . | . . . . . . . . . . . Authchips . | . . . . . . . . . . . Time . | . . . . . . . . . . . Total Robot Build Rating . | . . . . . . . . . . . Part Schematics Acquired . | . . . . . . . . . . . Parts Built . | . . . . . . . . . . . Authchips . | . . . . . . . . . . . Time . | . . . . . . . . . . . Total Part Build Rating . | . . . . . . . . . . . Parts Repaired . | . . . . . . . . . . . Time . | . . . . . . . . . . . Parts Recycled . | . . . . . . . . . . . Recycled Matter . | . . . . . . . . . . . Retrieved Matter . | . . . . . . . . . . . Retrieved Components . | . . . . . . . . . . . Parts Scanalyzed . | . . . . . . . . . . . Part Schematics Acquired . | . . . . . . . . . . . Parts Damaged . | . . . . . . . . . . . Bothacking | -11 -10 -10 -10 -9 -8 -7 -7 -7 -6 -6 ------------ Run | Jun Mat Min Exi Min Mat Fac Was Fac Fac Ext Used RIF Installer . | . . . . . . . . . . . Robots Hacked . | . . . . . . . . . . . Non-combat . | . . . . . . . . . . . Combat . | . . . . . . . . . . . Robot Hacks Applied . | . . . . . . . . . . . Relay Couplers Released . | . . . . . . . . . . . Fabnet Peak Effective % . | . . . . . . . . . . . Robots Rewired 6 | . . . . . . . . . . 6 Allies Hacked . | . . . . . . . . . . . Hacks Repelled . | . . . . . . . . . . . Allies | -11 -10 -10 -10 -9 -8 -7 -7 -7 -6 -6 -------- Run | Jun Mat Min Exi Min Mat Fac Was Fac Fac Ext Total Allies 7 | . . . . . . . . . . 7 Largest Group 5 | . . . . . . . . . . 5 Highest-Rated Group 157 | . . . . . . . . . . 157 Highest-Rated Ally 39 | . . . . . . . . . . 39 Total Orders . | . . . . . . . . . . . Ally Attacks 82 | . . . . . . . . . . 82 Total Damage 1642 | . . . . . . . . . . 1642 Kills 7 | . . . . . . . . . . 7 Allies Corrupted . | . . . . . . . . . . . Allies Melted 1 | . . . . . . . . . . 1 Intel | -11 -10 -10 -10 -9 -8 -7 -7 -7 -6 -6 ------- Run | Jun Mat Min Exi Min Mat Fac Was Fac Fac Ext Robot Analysis Total . | . . . . . . . . . . . Derelict Logs Recovered 3 | . . 2 . 1 . . . . . . Drone Launches . | . . . . . . . . . . . Drone Recoveries . | . . . . . . . . . . . Exploration | -11 -10 -10 -10 -9 -8 -7 -7 -7 -6 -6 ------------- Run | Jun Mat Min Exi Min Mat Fac Was Fac Fac Ext Turns Passed 12013 | . 577 371 167 679 740 5393 142 1847 1253 844 Spaces Moved 5494 | 1 458 325 176 364 259 1545 100 805 869 592 Core . | . . . . . . . . . . . Treads 152 | . . . . 143 5 . . 3 . 1 Legs 1224 | 1 89 . . . . 387 . 318 367 62 Wheels 3087 | . 369 325 176 221 254 1158 100 484 . . Hover 1031 | . . . . . . . . . 502 529 Flight . | . . . . . . . . . . . Fastest Speed 38 | 120 105 95 95 95 95 115 100 100 38 38 Average Speed 112 | 120 107 95 95 126 145 136 108 131 87 58 Slowest Speed 265 | 120 120 105 95 160 170 265 115 240 200 240 Overloaded Moves . | . . . . . . . . . . . Propulsion Burnouts . | . . . . . . . . . . . Robots Hopped . | . . . . . . . . . . . Cave-ins Triggered . | . . . . . . . . . . . Exploration Rate (%) 48 | 1 89 85 45 76 24 38 70 22 29 51 Regions Visited 10 Branch Regions 4 Pre-discovered Areas 2 | . . 1 1 . . . . . . . Known Exits Taken 4 | . 1 . 1 . . . . 1 1 . Unknown Exits Taken 4 | 1 . 1 . 1 1 . . . . . Scrap Searched 5 | . . 3 . 2 . . . . . . Spaces Dug 45 | . . . . 16 15 4 . 9 1 . Terrain Destroyed 244 | . 16 . . 23 97 55 . 52 1 . Melee 15 | . . . . . 1 4 . 9 1 . Projectile 7 | . . . . . . 3 . 4 . . AOE 222 | . 16 . . 23 96 48 . 39 . . Terrain Rammed . | . . . . . . . . . . . Walls Destroyed . | . . . . . . . . . . . Machines Disabled . | . . . . . . . . . . . Actions | -11 -10 -10 -10 -9 -8 -7 -7 -7 -6 -6 --------- Run | Jun Mat Min Exi Min Mat Fac Was Fac Fac Ext Total 10621 | . 508 380 175 500 572 4656 127 1466 1239 998 Wait 4225 | . 9 32 . 63 236 2887 21 550 229 198 Move 5486 | . 457 324 175 363 259 1545 99 804 868 592 Hop . | . . . . . . . . . . . Pick Up 100 | . 7 6 . 12 17 21 . 11 15 11 Fast Attach 60 | . 2 1 . 1 3 15 1 4 19 14 Attach 52 | . 1 1 . 6 11 9 1 10 5 8 Detach 10 | . 1 2 . . 1 3 . . 1 2 Swap 82 | . 8 3 . 4 12 35 1 11 4 4 Drop 84 | . 3 6 . 6 4 26 . 6 26 7 Fire 219 | . 20 5 . 45 28 85 4 20 . 12 Melee 149 | . . . . . 1 14 . 45 59 30 Ram 1 | . . . . . . 1 . . . . Kick 7 | . . . . . . 7 . . . . Crush . | . . . . . . . . . . . Escape Stasis 72 | . . . . . . 8 . 5 13 46 Rewire 74 | . . . . . . . . . . 74 Trap . | . . . . . . . . . . . Miscellaneous . | . . . . . . . . . . . Route ------- -11/Junkyard -10/Materials (discovered 3 exits: *Mat x2 / *Min) -10/Mines (discovered 2 exits: *Mat / *Exi) -10/Exiles (discovered 2 exits: *Min x2) -9/Mines -8/Materials (discovered 2 exits: *Fac / *Sto) -7/Factory (discovered 2 exits: *Low x2) -7/Waste -7/Factory (discovered 3 exits: *Fac x2 / *Low) -6/Factory (discovered 5 exits: *Fac / Low x2 / *Ext x2) -6/Extension History --------- Turn | Location | Event 1 | -11/Junkyard | Discovered new exit (range 0) 1 | -11/Junkyard | Entered Materials 109 | -10/Materials | Discovered new exit (range 16) 163 | -10/Materials | Discovered new exit (range 15) 310 | -10/Materials | Build established: Mutant 449 | -10/Materials | Discovered new exit (range 16) 480 | -10/Materials | Identified exit to Materials 577 | -10/Materials | Identified exit to Mines 578 | -10/Materials | Entered Mines 622 | -10/Mines | Received a Rocket Launcher from a helpful Derelict 641 | -10/Mines | Learned location of Zion (-7) 652 | -10/Mines | Found a damaged Exp. Sensor Array with a note attached 654 | -10/Mines | Found Prototype Device 711 | -10/Mines | Met a Derelict shopkeep closing up shop 737 | -10/Mines | Discovered exit to Materials (range 10) 768 | -10/Mines | Joined a pair of Derelicts in attacking an 0b10 outpost 944 | -10/Mines | Deemed a non-threat by the Exiles lab entrance 945 | -10/Mines | Discovered new exit (range 5) 949 | -10/Mines | Entered Exiles 950 | -10/Exiles | Identified exit to Mines 972 | -10/Exiles | Met 8R-AWN 988 | -10/Exiles | Met EX-HEX 1016 | -10/Exiles | Met EX-BIN 1036 | -10/Exiles | Met EX-DEC 1116 | -10/Exiles | Entered Mines 1159 | -9/Mines | YI-UF0 nonchalantly dropped a Grenade Launcher on the ground 1160 | -9/Mines | Assembled infested the area 1166 | -9/Mines | Assisted by a Guerilla fighting off Assembled 1228 | -9/Mines | A weapon hastily lodged in a ceiling crevice suddenly fell to the ground 1315 | -9/Mines | Learned 8 Materials zone layouts 1455 | -9/Mines | Lost 3 parts (2n1u) 1481 | -9/Mines | Core integrity fell below 50% 1546 | -9/Mines | System corruption reached 10% 1568 | -9/Mines | Destroyed 12 combat bots 1776 | -9/Mines | Discovered new exit (range 11) 1795 | -9/Mines | Entered Materials 1795 | -8/Materials | Evolved 4 slots: Propulsion x1, Utility x2, Weapon x1 1796 | -8/Materials | Identified exit to Storage 1806 | -8/Materials | Identified Exp. Sensor Array 2097 | -8/Materials | Lost 3 parts (1p2n) 2211 | -8/Materials | Lost 6 parts (1p3n2w) 2498 | -8/Materials | Discovered new exit (range 16) 2535 | -8/Materials | Entered Factory 2535 | -7/Factory | Evolved 2 slots: Propulsion x1, Utility x1 2726 | -7/Factory | Build established: Scavenger-Skirmisher 3259 | -7/Factory | Lost 3 parts (1u2w) 3530 | -7/Factory | Build established: Scavenger-Gunner 3834 | -7/Factory | Discovered new exit (range 11) 3870 | -7/Factory | Identified exit to Lower Caves 3981 | -7/Factory | Build established: Gunner 6737 | -7/Factory | Build established: Mutant 7438 | -7/Factory | Build established: Gunner 7584 | -7/Factory | Discovered exit to Lower Caves (range 15) 7928 | -7/Factory | Sucked down chute 7928 | -7/Factory | Entered Waste 7943 | -7/Waste | EMP discharged 7943 | -7/Waste | System corruption reached 10% 7960 | -7/Waste | Spotted C-40 Crusher 7988 | -7/Waste | Spotted C-40 Crusher 7993 | -7/Waste | Spotted C-40 Crusher 8016 | -7/Waste | Crushed by Compactor (1 part destroyed, 1 dropped) 8026 | -7/Waste | Spotted C-40 Crusher 8027 | -7/Waste | Spotted C-40 Crusher 8033 | -7/Waste | Spotted C-40 Crusher 8038 | -7/Waste | Crushed by Compactor (1 part destroyed) 8043 | -7/Waste | EMP discharged 8045 | -7/Waste | Crushed by Compactor (0 parts destroyed, 1 dropped) 8046 | -7/Waste | Core integrity fell below 50% 8051 | -7/Waste | Discovered new exit (range 16) 8069 | -7/Waste | Identified exit to Factory 8070 | -7/Waste | Entered Factory 8318 | -7/Factory | Discovered new exit (range 8) 8722 | -7/Factory | Build established: Mutant 9256 | -7/Factory | Core integrity fell below 20% 9279 | -7/Factory | Lost 4 parts (1p2n1w) 9421 | -7/Factory | Discovered exit to Lower Caves (range 4) 9836 | -7/Factory | Discovered new exit (range 14) 9916 | -7/Factory | Identified exit to Factory 9917 | -7/Factory | Entered another Factory area 9917 | -6/Factory | Evolved 2 slots: Utility x2 10465 | -6/Factory | Lost 3 parts (1p2n) 11027 | -6/Factory | Discovered new exit (range 8) 11033 | -6/Factory | Identified exit to Factory 11053 | -6/Factory | Identified exit to Lower Caves 11053 | -6/Factory | Identified exit to Extension 11170 | -6/Factory | Entered Extension 11347 | -6/Extension | Lost 4 parts (3n1u) 11520 | -6/Extension | Rescued a captive Derelict 11898 | -6/Extension | Spotted B-75 Beast 11902 | -6/Extension | Spotted B-75 Beast 11903 | -6/Extension | Build established: Commander-Mutant 11915 | -6/Extension | Core integrity fell below 50% 11916 | -6/Extension | Allies destroyed B-75 Beast 11956 | -6/Extension | Core integrity fell below 20% 11961 | -6/Extension | Destroyed B-75 Beast 12014 | -6/Extension | Destroyed by Y-54 Guardian with Flak Gun Last Messages --------------- 11958_ Slug penetrates B-75 Beast. 11961_ B-75 Beast destroyed. 11961_ Switching to secondary target: Y-54 Guardian. 11961_ Slug penetrates Y-54 Guardian. 11963_ Gauss Rifle destroyed. 11963_ Carbon-fiber Leg destroyed. 11965_ Acquired Carbon-fiber Leg. 11966_ Acquired 52 matter. 11969_ Acquired Carbon-fiber Leg. 11973_ Acquired 4 matter. 11973_ Gauss Rifle destroyed. 11975_ Acquired 1 matter. 11979_ Acquired Carbon-fiber Leg. 11983_ Acquired Imp. Ion Engine. 11989_ Acquired Hvy. Laser. 11990_ R-10 Processor collects Unknown Energy Gun. 11991_ Acquired 30 matter. 11994_ R-10 Processor collects Com. Wheel. 11996_ K-01 Serf destroyed. 12000_ Carbon-fiber Leg destroyed. Map ----- +----------------------------------------------------+ | ????????????????????# #??????????????????????????? | | ????????????????????# #??????????????????????????? | | ????????????????????# #??????????????????????????? | | ????????????????????# #??????????????????????????? | | ????????????????????# #??????????????????????????? | | ????????????????????# #??????????????????????????? | | ????????????????????? ???????????????????????????? | | ????????????????????? ???????????????????????????? | | ????????????????????? #??????????????????????????? | | ????????????????????? #??????????????????????????? | | ????????????????????? #??????????????????????????? | | ????????????????????# #??##?##???????????????????? | | ??????????????????### ### ## ##??????????????????? | | ??????????????????#"" "" "" ""??????????????? | | ??????????????????# " " " " #?????????????? | | ??????????????????# #?????????????? | | ??????????????????# #?????????????? | | ################### ###???????????? | | ??????????? | | YY u ??????????? | | % ! %% ??????????? | | % % % |! ?????????? | | !%t% % k RRk u ??????????? | | ################!%! = % #?????????????? | | ???????????????#### =%% % #?????????????? | | ??????????????????# % %%%@ #?????????????? | | ??????????????????# #?????????????? | | ??????????????????# #?????????????? | | ?????????????????#;#####T#"""#######?????????????? | | ?????????????????##????###???????????????????????? | | ?????????????????????????????????????????????????? | | | | | | | | | | | | | | | | | | | | | | | | | | | | | | | | | | | | | | | +----------------------------------------------------+ Best States ------------- Heat Dissipation 61 Energy Generation 18 Energy Capacity 290 Matter Stores 300 Matter Capacity 300 Sight Range 16 Terrain Scan Range 14 Terrain Scan Density 10 Armor Coverage 300 Resistance: KI 25 Propulsion Shielding 66 Utility Shielding 90 Weapon Cycling 30 Evasion (%) 57 Targeting Accuracy 8 Melee Accuracy 6 Recoil Reduction 2 Kinecelleration 30 Authchip Count 2 Item Schematics ----------------- None Robot Schematics ------------------ None Fabricated ------------ Nothing Alien Tech Used ----------------- None Achievements -------------- None Challenges ------------ None Game ------ Seed NeutrinoLongswordClaws Manual? 0 Play Time 01:29:41 Cumulative 200.3 hours Start 2024.01.05 @ 17:03:33 End 2024.01.06 @ 11:46:14 Sessions 3 Manual Loads 0 Difficulty Rogue Special Mode None Game No. 115 Rogue 115 Adventurer 0 Explorer 0 Win Type - Total 2 Types 2/0/0/0/0/0/0/0/0 Lore% 49 Gallery% 69 Achievement% 55 Wizard Run 0 Options --------- ASCII 0 Keyboard 1 Movement Numpad Keybinds 0 Fullscreen 1 Font 24/Smallcaps Map View 76x50 Tactical HUD 1 Map Filters NONE Filters NONE Steam 1 RUN: 890acbfc-80a8-405e-8da4-172161e47484